bitfinex/quotes_SOLUSD_20260302
["timestamp","ask_amount","ask_price","bid_price","bid_amount"]
[1772413717956,2.3229817,85.513,85.449,40.96010485]
[1772413718161,2.3229817,85.513,85.48,7.5493494]
[1772413718542,2.3229817,85.513,85.44,7.5493494]
[1772413718543,2.3229817,85.489,85.43,7.5493494]
[1772413718745,7.5493494,85.49,85.45,7.5493494]
[1772413718746,2.3229817,85.482,85.45,7.5493494]
[1772413719065,11.69289773,85.522,85.47,7.5493494]
[1772413719238,52.60819037,85.647,85.51,7.5493494]
[1772413719239,29.21535609,85.572,85.51,7.5493494]
[1772413719444,2.3229817,85.534,85.444,3.69383402]
[1772413719657,2.3229817,85.534,85.5,7.5493494]
[1772413719857,2.3229817,85.534,85.48,7.5493494]
[1772413719858,9.8723311,85.56,85.52,7.5493494]
[1772413720056,2.3229817,85.572,85.53,7.5493494]
[1772413720363,28.47718062,85.716,85.485,3.69383402]
[1772413720364,9.8723311,85.54,85.5,7.5493494]
[1772413720662,21.56288829,85.54,85.496,0.28432314]
[1772413720838,7.5493494,85.53,85.5,7.5493494]
[1772413721038,2.3229817,85.539,85.482,0.28432314]
[1772413721039,11.69057389,85.539,85.51,7.5493494]
[1772413721359,7.5493494,85.56,85.53,7.5493494]
[1772413721861,7.5493494,85.6,85.481,40.94477135]
[1772413721862,2.3229817,85.616,85.55,7.5493494]
[1772413722070,2.3229817,85.615,85.56,7.5493494]
[1772413722245,11.67692289,85.639,85.56,7.5493494]
[1772413722563,7.5493494,85.62,85.58,7.5493494]
[1772413722761,7.5493494,85.6,85.56,7.5493494]
[1772413722971,7.5493494,85.58,85.54,7.5493494]
[1772413723267,7.5493494,85.58,85.349,12.23588572]
[1772413723268,7.5493494,85.56,85.53,7.5493494]
[1772413723449,2.3229817,85.569,85.54,7.5493494]
[1772413723647,7.5493494,85.58,85.55,7.5493494]
[1772413723971,7.5493494,85.58,85.54,7.5493494]
[1772413724144,7.5493494,85.58,85.55,7.5493494]
[1772413724344,7.5493494,85.58,85.54,7.5493494]
[1772413724558,2.3229817,85.547,85.5,7.5493494]
[1772413724738,7.5493494,85.52,85.49,7.5493494]
[1772413724945,9.8723311,85.54,85.5,7.5493494]
[1772413725258,7.5493494,85.53,85.5,7.5493494]
[1772413725457,7.5493494,85.53,85.49,7.5493494]
[1772413725458,2.3229817,85.529,85.49,7.5493494]
[1772413725663,7.5493494,85.52,85.49,7.5493494]
[1772413725864,7.5493494,85.52,85.48,7.5493494]
[1772413726047,7.5493494,85.51,85.48,7.5493494]
[1772413726363,9.8723311,85.52,85.48,7.5493494]
[1772413726685,2.3229817,85.499,85.424,5.36086188]
[1772413726843,7.5493494,85.5,85.46,7.5493494]
[1772413727039,7.5493494,85.49,85.46,7.5493494]
[1772413727282,7.5493494,85.51,85.47,7.5493494]
[1772413727442,7.5493494,85.49,85.45,7.5493494]
[1772413727966,2.3229817,85.498,85.46,7.5493494]
[1772413728166,7.5493494,85.49,85.45,7.5493494]
[1772413728774,2.3229817,85.469,85.42,7.5493494]
[1772413728949,7.5493494,85.46,85.43,7.5493494]
[1772413729145,7.5493494,85.45,85.42,7.5493494]
[1772413729447,7.5493494,85.45,85.41,7.5493494]
[1772413729690,7.5493494,85.44,85.41,7.5493494]
[1772413729847,7.5493494,85.43,85.401,15.72488534]
[1772413730047,2.3229817,85.429,85.401,15.72488534]
[1772413730578,7.5493494,85.42,85.401,15.72488534]
[1772413730755,7.5493494,85.41,85.37,7.5493494]
[1772413730954,2.3229817,85.418,85.38,7.5493494]
[1772413731161,7.5493494,85.44,85.36,7.5493494]
[1772413731162,11.70601425,85.427,85.39,7.5493494]
[1772413731352,11.70503615,85.434,85.41,7.5493494]
[1772413731664,2.3229817,85.429,85.39,7.5493494]
[1772413731870,11.70425683,85.439,85.4,7.5493494]
[1772413732076,2.3229817,85.469,85.43,7.5493494]
[1772413732258,2.3229817,85.469,85.44,7.5493494]
[1772413732449,2.3229817,85.488,85.46,7.5493494]
[1772413732645,7.5493494,85.5,85.46,7.5493494]
[1772413732861,7.5493494,85.52,85.426,29.26502004]
[1772413732862,7.5493494,85.49,85.45,7.5493494]
[1772413733069,2.3229817,85.489,85.45,7.5493494]
[1772413733369,2.3229817,85.479,85.416,0.28432314]
[1772413733664,2.3229817,85.479,85.45,7.5493494]
[1772413734067,2.3229817,85.479,85.46,7.5493494]
[1772413734251,2.3229817,85.522,85.44,7.5493494]
[1772413734559,2.3229817,85.522,85.51,7.5493494]
[1772413734760,2.3229817,85.539,85.51,7.5493494]
[1772413734961,2.3229817,85.539,85.5,7.5493494]
[1772413735150,2.3229817,85.529,85.49,7.5493494]
[1772413735347,2.3229817,85.529,85.5,7.5493494]
[1772413735953,2.3229817,85.529,85.51,7.5493494]
[1772413736566,2.3229817,85.529,85.51,7.50345996]
[1772413736751,11.69207744,85.528,85.51,7.50345996]
[1772413736958,2.3229817,85.543,85.52,7.50345996]
[1772413737359,2.3229817,85.539,85.51,7.50345996]
[1772413737560,2.3229817,85.529,85.49,7.50345996]
[1772413738170,40.91461703,85.544,85.462,32.94635762]
[1772413738171,11.68989058,85.544,85.52,7.50345996]
[1772413738871,2.3229817,85.539,85.51,7.50345996]
[1772413739069,2.3229817,85.539,85.493,29.24182878]
[1772413739370,2.3229817,85.539,85.52,7.50345996]
[1772413740253,2.3229817,85.529,85.465,11.70069619]
[1772413740572,2.3229817,85.529,85.444,3.69383402]
[1772413740573,2.3229817,85.499,85.46,7.50345996]
[1772413740774,2.3229817,85.512,85.48,7.50345996]
[1772413740972,2.3229817,85.509,85.47,7.50345996]
[1772413741556,2.3229817,85.489,85.45,7.50345996]
[1772413741765,2.3229817,85.509,85.48,7.50345996]
[1772413741958,3.69383402,85.538,85.49,7.50345996]
[1772413741959,11.69305365,85.521,85.49,7.50345996]
[1772413742163,2.3229817,85.519,85.49,7.50345996]
[1772413742761,2.3229817,85.517,85.49,7.50345996]
[1772413742979,2.3229817,85.517,85.458,3.69383402]
[1772413742980,9.82644166,85.54,85.486,0.02323495]
[1772413743279,29.22320367,85.549,85.49,7.50345996]
[1772413743280,2.3229817,85.529,85.49,7.50345996]
[1772413743873,2.3229817,85.519,85.49,7.50345996]
[1772413744076,2.3229817,85.509,85.47,7.50345996]
[1772413744380,2.3229817,85.489,85.434,0.02400723]
[1772413744556,2.3229817,85.505,85.48,7.50345996]
[1772413744866,2.3229817,85.499,85.46,7.50345996]
[1772413745058,7.50345996,85.52,85.44,7.50345996]
[1772413745059,11.69452107,85.511,85.48,7.50345996]
[1772413745577,2.3229817,85.524,85.49,7.50345996]
[1772413745765,2.3229817,85.519,85.49,7.50345996]
[1772413746267,40.9217926,85.529,85.5,7.50345996]
[1772413746268,11.69194074,85.529,85.5,7.50345996]
[1772413746867,11.69221415,85.527,85.5,7.50345996]
[1772413747269,2.3229817,85.519,85.49,7.50345996]
[1772413747983,2.3229817,85.519,85.48,7.50345996]
[1772413748167,2.3229817,85.519,85.49,7.50345996]
[1772413748564,11.69221415,85.527,85.51,7.50345996]
[1772413748967,11.69221415,85.527,85.486,0.02700867]
[1772413748968,9.82644166,85.53,85.5,7.50345996]
[1772413749168,2.3229817,85.519,85.48,7.50345996]
[1772413749678,40.91705085,85.539,85.47,7.50345996]
[1772413749679,2.3229817,85.509,85.47,7.50345996]
[1772413749883,99.3699203,85.539,85.45,7.50345996]
[1772413749884,2.3229817,85.489,85.45,7.50345996]
[1772413750076,2.3229817,85.489,85.46,7.50345996]
[1772413750576,2.3229817,85.509,85.47,7.50345996]
[1772413751282,3.69383402,85.548,85.46,7.50345996]
[1772413751283,2.3229817,85.499,85.46,7.50345996]
[1772413751583,2.3229817,85.499,85.294,9.06197401]
[1772413751584,2.3229817,85.479,85.406,0.02917046]
[1772413751756,7.50345996,85.45,85.42,7.50345996]
[1772413751962,2.3229817,85.461,85.43,7.50345996]
[1772413752379,7.50345996,85.46,85.43,7.50345996]
[1772413752680,2.3229817,85.459,85.44,7.50345996]
[1772413753060,103.09973755,85.508,85.45,7.50345996]
[1772413753061,2.3229817,85.499,85.45,7.50345996]
[1772413753279,44.62567665,85.508,85.46,7.50345996]
[1772413753280,2.3229817,85.487,85.46,7.50345996]
[1772413753461,2.3229817,85.479,85.44,7.50345996]
[1772413753882,40.94141867,85.488,85.46,7.50345996]
[1772413754067,2.3229817,85.505,85.47,7.50345996]
[1772413754583,2.3229817,85.499,85.47,7.50345996]
[1772413754880,314.76086188,85.558,85.49,7.50345996]
[1772413754881,2.3229817,85.511,85.49,7.50345996]
[1772413755058,2.3229817,85.511,85.471,0.28432314]
[1772413755059,2.3229817,85.523,85.5,7.50345996]
[1772413755486,11.69289773,85.522,85.491,11.69708284]
[1772413755679,2.3229817,85.523,85.5,7.50345996]
[1772413756173,11.69289773,85.522,85.5,7.50345996]
[1772413756374,2.3229817,85.519,85.48,7.50345996]
[1772413756571,11.69289773,85.522,85.5,7.50345996]
[1772413756759,11.69289773,85.522,85.479,0.03327563]
[1772413756760,11.69289773,85.522,85.49,7.50345996]
[1772413756956,14.01587943,85.522,85.49,7.50345996]
[1772413757159,14.01587943,85.522,85.5,7.50345996]
[1772413757160,2.3229817,85.522,85.5,7.50345996]
[1772413757582,11.69162202,85.532,85.51,7.50345996]
[1772413757963,11.69162202,85.532,85.501,11.69576964]
[1772413758363,11.69162202,85.532,85.51,7.50345996]
[1772413758676,11.69162202,85.532,85.501,11.69576964]
[1772413759376,11.69162202,85.532,85.5,7.50345996]
[1772413759779,2.3229817,85.537,85.49,0.03522395]
[1772413759780,11.69098391,85.536,85.51,7.50345996]
[1772413760672,2.3229817,85.537,85.52,7.50345996]
[1772413760978,11.69098391,85.536,85.51,7.50345996]
[1772413761364,2.3229817,85.537,85.51,7.50345996]
[1772413761680,2.3229817,85.537,85.511,11.69440188]
[1772413761870,11.69037888,85.541,85.52,7.50345996]
[1772413762071,11.68877515,85.553,85.53,7.50345996]
[1772413762277,2.3229817,85.539,85.51,7.50345996]
[1772413762667,2.3229817,85.529,85.5,7.50345996]
[1772413762884,2.3229817,85.529,85.51,7.50345996]
[1772413763485,2.3229817,85.54,85.51,7.50345996]
[1772413765086,2.3229817,85.538,85.51,7.50345996]
[1772413765286,11.69057389,85.539,85.51,7.50345996]
[1772413765464,11.69057389,85.539,85.368,24.20419922]
[1772413765465,11.68826405,85.556,85.53,7.50345996]
[1772413765781,14.01124575,85.556,85.52,7.50345996]
[1772413765982,2.3229817,85.555,85.52,7.50345996]
[1772413766281,11.68766276,85.561,85.53,7.50345996]
[1772413766485,2.3229817,85.559,85.52,7.50345996]
[1772413766885,2.3229817,85.559,85.53,7.50345996]
[1772413767179,2.3229817,85.557,85.52,7.50345996]
[1772413767373,2.3229817,85.557,85.521,11.69303445]
[1772413768085,2.3229817,85.557,85.53,7.50345996]
[1772413768666,11.68797774,85.558,85.53,7.50345996]
[1772413768885,11.68797774,85.558,85.54,7.50345996]
[1772413769085,31.5394827,85.569,85.54,7.50345996]
[1772413769270,11.68661181,85.568,85.54,7.50345996]
[1772413769470,2.3229817,85.567,85.53,19.19523237]
[1772413770177,2.3229817,85.578,85.55,7.50345996]
[1772413770369,58.3986376,85.619,85.55,7.50345996]
[1772413770370,11.6862021,85.571,85.55,7.50345996]
[1772413770682,9.82644166,85.57,85.531,0.28432314]
[1772413770889,2.3229817,85.559,85.53,7.50345996]
[1772413771268,7.50345996,85.6,85.54,7.50345996]
[1772413771269,11.68661181,85.568,85.54,7.50345996]
[1772413771786,14.00959351,85.568,85.54,7.50345996]
[1772413772792,2.3229817,85.567,85.54,7.50345996]
[1772413773368,2.3229817,85.567,85.527,0.04401409]
[1772413773592,11.68688497,85.566,85.54,7.50345996]
[1772413774091,2.3229817,85.577,85.55,7.50345996]
[1772413774405,2.3229817,85.598,85.561,0.0445477]
[1772413774567,2.3229817,85.598,85.57,7.50345996]
[1772413774885,2.3229817,85.589,85.56,7.50345996]
[1772413775471,2.3229817,85.569,85.518,3.69383402]
[1772413775675,7.50345996,85.57,85.518,3.69383402]
[1772413775676,2.3229817,85.539,85.518,3.69383402]
[1772413775881,2.3229817,85.539,85.5,7.50345996]
[1772413776087,2.3229817,85.529,85.49,7.50345996]
[1772413776302,2.3229817,85.519,85.483,11.69809571]
[1772413776471,2.3229817,85.509,85.47,19.20347166]
[1772413776873,3.69383402,85.558,85.49,7.50345996]
[1772413776874,7.50345996,85.52,85.49,7.50345996]
[1772413777093,7.50345996,85.53,85.49,9.63289653]
[1772413777405,7.50345996,85.53,85.5,7.50345996]
[1772413777604,7.50345996,85.52,85.48,9.63289653]
[1772413777903,7.50345996,85.52,85.481,11.6985061]
[1772413778398,7.50345996,85.51,85.481,11.6985061]
[1772413778598,7.50345996,85.52,85.481,11.6985061]
[1772413779198,13.84673167,85.534,85.491,2.12943657]
[1772413779402,9.65881031,85.53,85.5,7.50345996]
[1772413779593,11.69194074,85.529,85.492,11.69700088]
[1772413780088,2.15535035,85.509,85.476,11.69911758]
[1772413780520,58.45488889,85.537,85.476,11.69911758]
[1772413780521,2.15535035,85.559,85.501,2.12943657]
[1772413780801,2.15535035,85.559,85.53,7.50345996]
[1772413781599,2.15535035,85.559,85.517,2.12943657]
[1772413781600,2.15535035,85.57,85.54,7.50345996]
[1772413781777,13.84182559,85.569,85.54,7.50345996]
[1772413782382,7.50345996,85.59,85.56,7.50345996]
[1772413782586,2.15535035,85.593,85.57,7.50345996]
[1772413782781,2.15535035,85.605,85.57,7.50345996]
[1772413782987,2.15535035,85.605,85.58,7.50345996]
[1772413783197,2.15535035,85.605,85.551,2.12943657]
[1772413783398,2.15535035,85.599,85.56,7.50345996]
[1772413783693,11.68251594,85.598,85.57,7.50345996]
[1772413783900,2.15535035,85.599,85.57,7.50345996]
[1772413784098,13.83776439,85.599,85.57,7.50345996]
[1772413784480,29.20253711,85.609,85.57,7.50345996]
[1772413784481,2.15535035,85.609,85.57,7.50345996]
[1772413784907,2.15535035,85.609,85.48,30.01383984]
[1772413784908,2.15535035,85.589,85.555,11.68827391]
[1772413785079,2.15535035,85.589,85.56,7.50345996]
[1772413785592,0.2,85.61,85.54,7.50345996]
[1772413785593,2.15535035,85.577,85.54,7.50345996]
[1772413786004,2.15535035,85.569,85.53,7.50345996]
[1772413786298,2.15535035,85.55,85.52,7.50345996]
[1772413786681,2.15535035,85.539,85.501,11.69567182]
[1772413786883,2.15535035,85.539,85.51,7.50345996]
[1772413787105,2.25750984,85.549,85.51,7.50345996]
[1772413787478,99.32459276,85.578,85.49,7.50345996]
[1772413787479,2.25750984,85.529,85.49,7.50345996]
[1772413787679,7.50345996,85.56,85.47,2.13090194]
[1772413787680,2.25750984,85.519,85.483,11.69822867]
[1772413788197,58.4395621,85.559,85.49,7.50345996]
[1772413788198,7.50345996,85.53,85.49,7.50345996]
[1772413788396,2.25750984,85.545,85.51,7.50345996]
[1772413788598,7.50345996,85.53,85.5,7.50345996]
[1772413788799,2.25750984,85.539,85.5,7.50345996]
[1772413789302,3.69383402,85.584,85.481,29.24626525]
[1772413789303,2.25750984,85.563,85.53,7.50345996]
[1772413789489,11.68785535,85.559,85.53,7.50345996]
[1772413789897,11.68785535,85.559,85.512,40.92992796]
[1772413789898,2.25750984,85.549,85.52,7.50345996]
[1772413790295,2.25750984,85.558,85.52,7.50345996]
[1772413790801,11.68785535,85.559,85.52,7.50345996]
[1772413790802,11.68555982,85.576,85.531,2.13090194]
[1772413790987,2.25750984,85.584,85.55,7.50345996]
[1772413791300,2.25750984,85.584,85.531,2.13090194]
[1772413791301,11.68510966,85.579,85.54,7.50345996]
[1772413791607,13.94201145,85.584,85.551,11.68893408]
[1772413792188,2.25750984,85.584,85.56,7.50345996]
[1772413792394,11.68376112,85.589,85.56,7.50345996]
[1772413792699,11.68376112,85.589,85.551,11.68893408]
[1772413792700,2.25750984,85.579,85.551,11.68893408]
[1772413792900,2.25750984,85.588,85.551,11.68893408]
[1772413793202,2.25750984,85.579,85.54,7.50345996]
[1772413793411,2.25750984,85.579,85.541,11.69030055]
[1772413793910,2.25750984,85.577,85.541,11.69030055]
[1772413795213,11.68462698,85.583,85.542,2.13090194]
[1772413795525,2.25750984,85.588,85.541,40.91605194]
[1772413795803,2.25750984,85.577,85.54,7.50345996]
[1772413795985,11.68392256,85.588,85.56,7.50345996]
[1772413796182,7.50345996,85.64,85.561,2.13090194]
[1772413796183,2.25750984,85.602,85.561,2.13090194]
[1772413796491,2.25750984,85.598,85.561,2.13090194]
[1772413796895,2.25750984,85.598,85.56,7.50345996]
[1772413797202,2.25750984,85.579,85.541,11.69030055]
[1772413797585,2.25750984,85.579,85.55,7.50345996]
[1772413797907,9.7609698,85.59,85.55,7.50345996]
[1772413798202,11.68432595,85.585,85.56,7.50345996]
[1772413798589,11.68432595,85.585,85.56,7.49411492]
[1772413798790,2.25750984,85.569,85.533,11.69134062]
[1772413799107,2.25750984,85.579,85.55,7.49411492]
[1772413799404,2.25750984,85.579,85.54,7.49411492]
[1772413799600,2.25750984,85.579,85.55,7.49411492]
[1772413799979,2.25750984,85.579,85.551,11.68893408]
[1772413800181,7.49411492,85.64,85.551,11.68893408]
[1772413800182,0.2,85.61,85.57,7.49411492]
[1772413800484,7.49411492,85.64,85.601,2.13090194]
[1772413800485,11.67739041,85.636,85.601,2.13090194]
[1772413800682,11.67828656,85.629,85.59,7.49411492]
[1772413800911,7.49411492,85.62,85.59,7.49411492]
[1772413801111,0.2,85.63,85.6,7.49411492]
[1772413801415,96.9611315,85.672,85.6,7.49411492]
[1772413801416,96.9611315,85.672,85.621,2.13090194]
[1772413801595,38.55786342,85.803,85.621,2.13090194]
[1772413801596,11.67419652,85.659,85.621,2.13090194]
[1772413801792,11.67419652,85.659,85.59,7.49411492]
[1772413801793,7.49411492,85.63,85.59,7.49411492]
[1772413802002,7.49411492,85.63,85.59,9.62501686]
[1772413802207,11.67828656,85.629,85.59,7.49411492]
[1772413802411,11.6742889,85.659,85.621,2.13090194]
[1772413802612,38.55786342,85.803,85.651,2.13090194]
[1772413802613,1e-08,85.67,85.651,2.13090194]
[1772413802789,7.49411492,85.7,85.661,2.13090194]
[1772413802989,13.92680209,85.695,85.649,2.13090194]
[1772413803300,2.25750984,85.669,85.64,7.49411492]
[1772413803492,2.25750984,85.684,85.641,2.13090194]
[1772413803686,7.49411492,85.69,85.66,7.49411492]
[1772413803891,2.25750984,85.689,85.65,7.49411492]
[1772413804084,7.49411492,85.72,85.632,2.13090194]
[1772413804085,2.25750984,85.679,85.632,2.13090194]
[1772413804302,11.67160764,85.678,85.65,7.49411492]
[1772413804501,11.67160764,85.678,85.61,58.40403065]
[1772413804502,2.25750984,85.669,85.629,2.13090194]
[1772413804709,2.25750984,85.669,85.63,7.49411492]
[1772413804910,2.25750984,85.66,85.62,9.62501686]
[1772413805111,2.25750984,85.659,85.62,9.62501686]
[1772413805789,7.49411492,85.65,85.62,2.13090194]
[1772413805992,2.25750984,85.659,85.62,9.62501686]
[1772413806194,13.93184265,85.658,85.621,11.67937772]
[1772413806509,0.2648795,85.696,85.621,11.67937772]
[1772413806510,2.25750984,85.695,85.651,2.13090194]
[1772413806710,0.2648795,85.696,85.661,2.13090194]
[1772413806910,11.66929225,85.695,85.661,2.13090194]
[1772413807305,11.66929225,85.695,85.622,3.69383402]
[1772413807306,2.25750984,85.679,85.637,2.13090194]
[1772413807607,2.25750984,85.679,85.65,7.49411492]
[1772413807809,0.2648795,85.696,85.661,2.13090194]
[1772413807994,0.2648795,85.696,85.67,7.49411492]
[1772413809005,2.25750984,85.694,85.66,7.49411492]
[1772413809211,2.25750984,85.694,85.649,2.13090194]
[1772413809404,7.49411492,85.69,85.66,7.49411492]
[1772413809602,2.25750984,85.679,85.636,2.13090194]
[1772413809915,40.84252289,85.695,85.65,7.49411492]
[1772413809916,7.49411492,85.69,85.65,7.49411492]
[1772413810111,2.25750984,85.689,85.66,7.49411492]
[1772413810323,0.2648795,85.696,85.66,7.49411492]
[1772413810496,7.49411492,85.69,85.66,7.49411492]
[1772413811098,2.25750984,85.679,85.604,2.13090194]
[1772413811418,7.49411492,85.68,85.603,11.68183358]
[1772413811419,7.49411492,85.63,85.603,11.68183358]
[1772413811619,7.49411492,85.63,85.591,31.33936977]
[1772413811620,7.49411492,85.63,85.591,2.13090194]
[1772413811809,7.49411492,85.62,85.591,2.13090194]
[1772413811999,7.49411492,85.64,85.6,7.49411492]
[1772413812203,19.17238484,85.63,85.6,7.49411492]
[1772413812401,19.17238484,85.63,85.595,2.13090194]
[1772413812817,19.17238484,85.63,85.6,7.49411492]
[1772413813123,19.17238484,85.63,85.595,2.13090194]
[1772413813300,21.5084196,85.63,85.595,2.13090194]
[1772413813494,7.49411492,85.62,85.595,2.13090194]
[1772413813700,7.49411492,85.62,85.59,7.49411492]
[1772413814904,9.83014968,85.61,85.572,2.17396454]
[1772413815304,11.67896807,85.625,85.59,7.49411492]
[1772413815508,11.67741229,85.636,85.6,7.49411492]
[1772413815704,2.33603476,85.638,85.6,7.49411492]
[1772413815705,2.33603476,85.638,85.61,7.49411492]
[1772413816320,11.67599565,85.646,85.61,7.49411492]
[1772413816725,7.49411492,85.64,85.61,7.49411492]
[1772413817027,2.33603476,85.638,85.601,2.17396454]
[1772413817207,2.33603476,85.638,85.61,7.49411492]
[1772413817518,11.67564303,85.649,85.611,2.20166399]
[1772413817720,7.49411492,85.63,85.601,11.68210651]
[1772413818211,2.14458304,85.639,85.601,11.68210651]
[1772413818519,11.67564303,85.649,85.61,7.49411492]
[1772413818718,7.49411492,85.63,85.596,13.88439361]
[1772413818937,2.14458304,85.639,85.603,2.20166399]
[1772413819105,11.6761589,85.645,85.611,2.20166399]
[1772413819742,2.14458304,85.67,85.621,2.20166399]
[1772413820025,2.14458304,85.683,85.65,7.49411492]
[1772413820235,2.14458304,85.683,85.66,7.49411492]
[1772413820404,11.66929225,85.695,85.66,7.49411492]
[1772413820723,11.66929225,85.695,85.64,7.49411492]
[1772413820724,2.14458304,85.707,85.67,7.49411492]
[1772413820907,2.14458304,85.707,85.671,11.67256131]
[1772413820908,11.66782163,85.706,85.671,11.67256131]
[1772413821120,2.14458304,85.737,85.691,2.20166399]
[1772413821427,46.55907172,85.913,85.671,11.67256131]
[1772413821428,2.14458304,85.754,85.71,2.20166399]
[1772413821627,7.49411492,85.74,85.698,2.20166399]
[1772413821804,7.49411492,85.72,85.673,2.20166399]
[1772413822127,7.49411492,85.74,85.71,7.49411492]
[1772413822328,7.59411492,85.77,85.731,2.20166399]
[1772413822702,2.14458304,85.768,85.731,2.20166399]
[1772413822909,7.49411492,85.74,85.703,2.20166399]
[1772413823109,7.49411492,85.74,85.68,7.49411492]
[1772413823110,2.14458304,85.729,85.69,7.49411492]
[1772413823328,2.14458304,85.729,85.675,2.48598713]
[1772413823329,2.14458304,85.719,85.68,7.49411492]
[1772413823506,7.49411492,85.7,85.663,2.20166399]
[1772413823708,7.49411492,85.68,85.65,7.49411492]
[1772413823924,7.49411492,85.72,85.6,7.49411492]
[1772413823925,2.14458304,85.669,85.63,7.49411492]
[1772413824227,7.49411492,85.67,85.64,7.49411492]
[1772413824422,9.63869796,85.68,85.64,7.49411492]
[1772413824724,2.14458304,85.659,85.62,7.49411492]
[1772413824927,7.49411492,85.65,85.62,7.49411492]
[1772413825106,2.14458304,85.659,85.609,11.68101484]
[1772413825107,2.14458304,85.672,85.631,2.20166399]
[1772413825306,7.49411492,85.67,85.64,7.49411492]
[1772413825526,3.69383402,85.716,85.609,40.88355195]
[1772413825527,7.49411492,85.65,85.62,7.49411492]
[1772413825729,2.14458304,85.659,85.62,9.69577891]
[1772413826313,2.14458304,85.659,85.583,3.69383402]
[1772413826314,9.63869796,85.65,85.61,7.49411492]
[1772413826524,7.49411492,85.64,85.6,7.49411492]
[1772413826712,7.49411492,85.64,85.61,7.49411492]
[1772413827226,11.67639474,85.643,85.585,2.20166399]
[1772413827227,40.86923013,85.639,85.585,2.20166399]
[1772413827411,7.49411492,85.63,85.6,7.49411492]
[1772413827726,7.49411492,85.64,85.61,7.49411492]
[1772413827926,7.49411492,85.64,85.601,2.20166399]
[1772413827927,7.49411492,85.65,85.62,7.49411492]
[1772413828128,7.49411492,85.68,85.63,7.49411492]
[1772413828129,7.49411492,85.66,85.63,7.49411492]
[1772413828309,7.49411492,85.64,85.608,2.20166399]
[1772413828625,9.63869796,85.64,85.6,7.49411492]
[1772413828824,2.14458304,85.653,85.61,7.49411492]
[1772413829028,7.49411492,85.66,85.621,2.20166399]
[1772413829231,11.67419652,85.659,85.622,2.20166399]
[1772413829429,2.14458304,85.654,85.61,7.49411492]
[1772413829629,7.49411492,85.65,85.611,2.20166399]
[1772413829839,2.14458304,85.639,85.6,7.49411492]
[1772413830020,7.49411492,85.63,85.596,2.20166399]
[1772413830331,7.49411492,85.62,85.59,7.49411492]
[1772413830526,9.63869796,85.63,85.6,7.49411492]
[1772413830709,7.49411492,85.65,85.62,7.49411492]
[1772413830909,2.14458304,85.658,85.62,7.49411492]
[1772413831130,11.6744691,85.657,85.621,11.67937772]
[1772413831309,2.14458304,85.671,85.622,2.20166399]
[1772413831515,7.49411492,85.69,85.651,2.20166399]
[1772413831709,7.49411492,85.72,85.621,40.87782202]
[1772413831710,7.49411492,85.67,85.631,2.20166399]
[1772413831910,7.49411492,85.67,85.621,40.87782202]
[1772413831911,2.14458304,85.679,85.641,2.20166399]
[1772413832110,7.49411492,85.67,85.631,2.20166399]
[1772413832311,7.49411492,85.68,85.64,7.49411492]
[1772413832534,7.49411492,85.68,85.631,2.20166399]
[1772413832832,7.49411492,85.67,85.64,7.49411492]
[1772413833213,7.49411492,85.68,85.641,11.6766502]
[1772413833410,11.67092655,85.683,85.631,2.20166399]
[1772413833411,7.49411492,85.67,85.631,2.20166399]
[1772413833611,7.49411492,85.67,85.58,58.424236]
[1772413833612,7.49411492,85.65,85.611,11.68074196]
[1772413833831,11.67092655,85.683,85.63,7.49411492]
[1772413833832,2.14458304,85.669,85.63,7.49411492]
[1772413834039,7.49411492,85.68,85.65,7.49411492]
[1772413834249,7.49411492,85.69,85.65,7.49411492]
[1772413834714,7.49411492,85.69,85.66,7.49411492]
[1772413834912,7.49411492,85.69,85.64,7.49411492]
[1772413834913,5.83841706,85.729,85.681,2.20166399]
[1772413835133,2.14458304,85.729,85.7,7.49411492]
[1772413835435,13.80585941,85.754,85.72,7.49411492]
[1772413835637,2.14458304,85.739,85.7,7.49411492]
[1772413835934,7.49411492,85.73,85.7,7.49411492]
[1772413836432,7.49411492,85.76,85.721,2.20166399]
[1772413837038,7.59411492,85.77,85.73,7.49411492]
[1772413837240,7.59411492,85.77,85.683,3.69383402]
[1772413837241,2.14458304,85.836,85.761,2.20166399]
[1772413837550,28.47718062,85.932,85.733,0.28432314]
[1772413837551,2.14458304,85.819,85.763,0.28432314]
[1772413837722,2.14458304,85.819,85.733,3.69383402]
[1772413837723,2.14458304,85.81,85.765,2.20166399]
[1772413838035,2.14458304,85.799,85.76,7.49411492]
[1772413838241,2.14458304,85.799,85.751,2.20166399]
[1772413838423,2.14458304,85.8,85.748,2.20166399]
[1772413838628,2.14458304,85.798,85.76,14.415682]
[1772413838944,12.21401801,85.8,85.761,2.20166399]
[1772413839143,6.08898657,85.836,85.791,2.20166399]
[1772413839346,13.79484225,85.835,85.8,12.21401801]
[1772413839719,13.79484225,85.835,85.791,2.20166399]
[1772413839915,12.21401801,85.81,85.773,2.20166399]
[1772413840121,12.21401801,85.8,85.765,11.65975681]
[1772413840322,2.14458304,85.809,85.78,12.21401801]
[1772413840619,2.14458304,85.809,85.765,11.65975681]
[1772413840620,2.14458304,85.809,85.77,12.21401801]
[1772413840924,12.21401801,85.79,85.745,2.20166399]
[1772413841121,13.80380723,85.769,85.709,2.34382556]
[1772413841338,2.14458304,85.782,85.721,2.20166399]